Cogmind - Beta 15 @@@ ROGUE MODE // 2025.05.23 @ 14:16:12 // Winter2022/Polymind Player: Demo Result: Destroyed by KC-8T0(j) with Overtuned Pulse Rifle Performance ------------- Evolutions (1) 500 Regions Visited (5) 1000 Robots Destroyed (30) 150 Value Destroyed (893) 893 Prototype IDs (9) 180 Alien Tech Used (0) 0 Bonus (3778) 3778 TOTAL SCORE: 5701 Bonus ------- Polymind Skill 2760 Pacifist 200 Follower Combat Kills 18 Registered with UFD 300 Met Optimus in HQ 500 Cogmind --------- Core Integrity 0/400 Matter 286/300 Energy 2450/2450 System Corruption 0% Temperature Cool (9) Movement Immobile (Siege) Location -9/Scraptown Parts ------- > --- POWER (3) -------- Hybrid Fission Core Hybrid Fission Core Hybrid Fission Core > --- PROPULSION (6) --- Tri-treads Tri-treads > --- UTILITY (14) ----- Makeshift Coolant Network High-capacity Matter Pod Siege Articulator Siege Articulator Siege Articulator Improved Targeting Computer Improved Targeting Computer Improved Targeting Computer Makeshift Weapon Shielding Makeshift Medium Armor Plating Makeshift Medium Armor Plating Makeshift Medium Armor Plating > --- WEAPON (3) ------- Siege Cannon > --- INVENTORY (1) ---- (None) Peak State ------------ > --- POWER ------------ Hybrid Fission Core Hybrid Fission Core Hybrid Fission Core > --- PROPULSION ------- Tri-treads Tri-treads > --- UTILITY ---------- Makeshift Coolant Network High-capacity Matter Pod Siege Articulator Siege Articulator Siege Articulator Improved Targeting Computer Improved Targeting Computer Improved Targeting Computer Makeshift Weapon Shielding Makeshift Medium Armor Plating Makeshift Medium Armor Plating Makeshift Medium Armor Plating > --- WEAPON ----------- Siege Cannon > --- INVENTORY -------- (None) [Rating: 125] Favorites ----------- Power Improved Ion Engine Engine Improved Ion Engine Power Core Hybrid Fission Core Propulsion Light Treads Treads Light Treads Leg Aluminum Leg Hover Unit Backup Propulsion I Flight Unit Flight Unit Utility Heat Sink Device Heat Sink Storage High-capacity Matter Pod Processor Improved Targeting Computer Protection Light Armor Plating Weapon Beam Rifle Energy Gun Beam Rifle Ballistic Gun Heavy Assault Rifle Ballistic Cannon Siege Cannon Build | -11 -10 -9 -9 -9 -9 ------- Run | Yrd Mat Mat Sto Rec Scr Slots Evolved . | . . . . . . Power . | . . . . . . Propulsion . | . . . . . . Utility . | . . . . . . Weapon . | . . . . . . Parts Attached . | . . . . . . Power . | . . . . . . Engine . | . . . . . . Core . | . . . . . . Reactor . | . . . . . . Propulsion . | . . . . . . Treads . | . . . . . . Leg . | . . . . . . Wheel . | . . . . . . Hover . | . . . . . . Flight . | . . . . . . Utility . | . . . . . . Device . | . . . . . . Storage . | . . . . . . Processor . | . . . . . . Hackware . | . . . . . . Protection . | . . . . . . Artifact . | . . . . . . Weapon . | . . . . . . Energy Gun . | . . . . . . Energy Cannon . | . . . . . . Ballistic Gun . | . . . . . . Ballistic Cannon . | . . . . . . Launcher . | . . . . . . Special Weapon . | . . . . . . Impact Weapon . | . . . . . . Slashing Weapon . | . . . . . . Piercing Weapon . | . . . . . . Special Melee Weapon . | . . . . . . Unidentified Prototypes . | . . . . . . Parts Lost 8 | . . . 8 . . Power 1 | . . . 1 . . Propulsion 4 | . . . 4 . . Utility 2 | . . . 2 . . Weapon 1 | . . . 1 . . Highest Loss Streak 4 | . . . 4 . . To Critical Strikes . | . . . . . . Average Backups . | . . . . . . Power . | . . . . . . Propulsion . | . . . . . . Utility . | . . . . . . Weapon . | . . . . . . Tool/Special . | . . . . . . Unused Backups 2 | . . . . . 2 Power . | . . . . . . Propulsion . | . . . . . . Utility . | . . . . . . Weapon 2 | . . . . . 2 Tool/Special . | . . . . . . Average Slot Usage (%) 91 | . 33 100 86 97 93 Engine 11 | . 8 25 11 16 10 Treads 17 | . . . 15 7 22 Leg 4 | . . . 2 20 . Hover 1 | . . . 1 4 . Device 23 | . . . 24 22 23 Protection 7 | . . . 5 3 11 Energy Gun 12 | . . . 12 16 10 Ballistic Gun 10 | . 8 25 11 5 10 Peak Build Rating 125 | . 4 4 11 11 125 Average Rating 11 | . 1 4 9 7 13 On Entrance 4 | . . 4 4 10 11 Naked Turns 174 | . 16 . 5 6 147 Heaviest Build 89 | . 4 4 18 18 89 Greatest Support 104 | 3 8 8 40 40 104 Greatest Overweight (x) 4 | . . . 4 1 . Average Overweight (x) . | . . . . . . Largest Inventory Capacity 1 | . . . 1 1 1 Average Capacity . | . . . . . . Most Carried 1 | . . . . . 1 Average Carried . | . . . . . . Final Capacity 1 | . . . 1 1 1 Final Carried . | . . . . . . Class Distribution -------------------- 81% | Sentry 12% | Grunt 3% | Cogmind Dominant Class ---------------- Cogmind | -10/Materials Swarmer | -9/Materials Sentry | -9/Storage Grunt | -9/Recycling Sentry | -9/Scraptown Resources | -11 -10 -9 -9 -9 -9 ----------- Run | Yrd Mat Mat Sto Rec Scr Matter Collected 132 | . . . 83 49 . Remotely . | . . . . . . Salvage Created 899 | . . . 693 206 . Parts 49 | . . . 43 6 . Haulers Intercepted 1 | . . . 1 . . Recyclers Shooed 1 | . . . 1 . . Parts Field Recycled . | . . . . . . Retrieved Matter . | . . . . . . Parts Self-Destructed 6 | . . . . . 6 Prevented . | . . . . . . Kills | -11 -10 -9 -9 -9 -9 ------- Run | Yrd Mat Mat Sto Rec Scr Combat Hostiles Destroyed 23 | . . . 21 2 . Guns 22 | . . . 20 2 . Classes Destroyed 9 | . . . 8 1 . Worker 3 | . . . 3 . . Builder 1 | . . . 1 . . Hauler 1 | . . . 1 . . Mechanic 1 | . . . 1 . . Watcher 1 | . . . 1 . . Grunt 17 | . . . 17 . . Brawler 1 | . . . 1 . . Sentry 4 | . . . 3 1 . Programmer 1 | . . . . 1 . Best Kill Streak 5 | . . . 5 1 . Combat Bots Only 4 | . . . 4 1 . Max Kills in Single Turn 1 | . . . 1 1 . Gunslinging . | . . . . . . Exploded . | . . . . . . Melee . | . . . . . . Uniques/NPCs Destroyed . | . . . . . . Combat | -11 -10 -9 -9 -9 -9 -------- Run | Yrd Mat Mat Sto Rec Scr Hostile Shots Fired 185 | . 27 . 134 7 17 Missed 60 | . 18 . 37 1 4 Hits 125 | . 9 . 97 6 13 Melee 2 | . . . 2 . . Projectile 123 | . 9 . 95 6 13 Critical Strikes 4 | . . . 2 1 1 Damage Taken 1529 | . 75 . 1166 91 197 Core 471 | . 59 . 329 31 52 Absorbed by Shields 46 | . . . . . 46 Redirected to Shielding 2 | . . . . . 2 Ignored by Resistances 14 | . . . 14 . . Core Remaining (%) 88 | 100 76 . . . . Volleys Fired 99 | . . . 86 12 1 Largest 2 | . . . 2 2 1 Hottest 79 | . . . 79 79 65 Shots Fired 160 | . . . 136 23 1 Gun 159 | . . . 136 23 . Cannon 1 | . . . . . 1 Launcher . | . . . . . . Special . | . . . . . . Kinetic 61 | . . . 50 10 1 Thermal 99 | . . . 86 13 . Explosive . | . . . . . . Electromagnetic . | . . . . . . Robot Hit Streak 14 | . . . 12 14 . Robot Miss Streak 3 | . . . 3 3 2 Penetration Max . | . . . . . . Secondary Targets . | . . . . . . Shots Hit Robots 103 | . . . 87 16 . Core Hits 64 | . . . 40 24 . Critical Kills . | . . . . . . Critical Parts Destroyed . | . . . . . . Critical Strikes 9 | . . . 9 . . Burn 9 | . . . 9 . . Melee Attacks . | . . . . . . Impact . | . . . . . . Slashing . | . . . . . . Piercing . | . . . . . . Sneak Attacks . | . . . . . . Combat Hostiles . | . . . . . . Follow-up Attacks . | . . . . . . Damage Inflicted 2137 | . . . 1523 614 . Guns 1652 | . . . 1352 300 . Cannons . | . . . . . . Explosions . | . . . . . . Melee . | . . . . . . Ramming 485 | . . . 171 314 . Kinetic 553 | . . . 407 146 . Thermal 1099 | . . . 945 154 . Explosive . | . . . . . . Electromagnetic . | . . . . . . Impact . | . . . . . . Slashing . | . . . . . . Piercing . | . . . . . . Highest Corruption 1 | . . . . 1 . Average Corruption 1 | . . . . 1 . Corruption Purged . | . . . . . . Corruption Blocked . | . . . . . . Effects 4 | . . . . 4 . Message Errors 1 | . . . . 1 . Data Loss (minor) 1 | . . . . 1 . Data Loss (major) 1 | . . . . 1 . Misfires 1 | . . . . 1 . Overload Shots . | . . . . . . Overflow Damage 2 | . . . . 2 . Projectiles . | . . . . . . Explosions . | . . . . . . Melee 2 | . . . . 2 . Knockbacks 12 | . . . . 12 . Impact 12 | . . . . 12 . Kinetic . | . . . . . . Secondary . | . . . . . . Self-Inflicted Damage . | . . . . . . Shots . | . . . . . . Rammed 87 | . . . 73 14 . Targets Rammed 290 | . . . 82 208 . Kicked 196 | . . . 3 193 . Crushed 7 | . . . 6 1 . Highest Temperature 35 | . . . 35 4 . Average Temperature 10 | . . . 10 3 . Received Heat Transfer 676 | . 6 . 573 . 97 Siege Activations 1 | . . . . . 1 Total Turns 1 | . . . . . 1 Longest Duration 1 | . . . . . 1 Martial Activations . | . . . . . . Shielding Activations . | . . . . . . Robots Disrupted . | . . . . . . Combat Hostiles . | . . . . . . Robots Corrupted 2 | . . . . 2 . Combat Hostiles . | . . . . . . Parts Fried . | . . . . . . Impact Corruptions 2 | . . . . 2 . Robots Melted 1 | . . . 1 . . Combat Hostiles 1 | . . . 1 . . Parts Melted 7 | . . . 7 . . Heat Transferred 3298 | . . . 2960 338 . Parts Sabotaged . | . . . . . . Parts Stolen . | . . . . . . Parts Stripped . | . . . . . . Power Chain Reactions . | . . . . . . Alert | -11 -10 -9 -9 -9 -9 ------- Run | Yrd Mat Mat Sto Rec Scr Maximum Alert Level 1 | . . . 1 . . Low Security (%) 76 | 100 100 100 61 100 . Level 1 23 | . . . 38 . . Level 2 . | . . . . . . Level 3 . | . . . . . . Level 4 . | . . . . . . Level 5 . | . . . . . . High Security . | . . . . . . Max Security . | . . . . . . Peak Influence 306 | . . . 306 98 . Initial 88 | . . . . 88 . Average 85 | . . . 126 22 . Influence Increases 960 | . . . 787 173 . Destroy 0b10 Robot/C 460 | . . . 420 40 . Destroy 0b10 Robot/NC 85 | . . . 45 40 . Destroy Leader 84 | . . . 84 . . Allied During Kill 1 | . . . . 1 . Successful Hack 20 | . . . 20 . . Select Force Hacks 90 | . . . . 90 . Anti-Garrison Action 200 | . . . 200 . . Destroy Structure 5 | . . . 3 2 . Lose Combat Pursuer 15 | . . . 15 . . Influence Decreases 960 | . . . 559 401 . Entered New Map 140 | . . . . 140 . Time Decay 724 | . . . 484 240 . Lost Part 70 | . . . 70 . . Lost Ally 20 | . . . . 20 . Miscellaneous 6 | . . . 5 1 . Squads Dispatched 6 | . 2 . 4 . . Investigation 4 | . 1 . 3 . . Extermination . | . . . . . . Reinforcement 2 | . 1 . 1 . . Assault . | . . . . . . Garrison . | . . . . . . Intercept . | . . . . . . Searches Triggered . | . . . . . . Construction Impeded . | . . . . . . Haulers Reinforced . | . . . . . . Active Scanning Responses . | . . . . . . Cargo Convoy Interrupts . | . . . . . . Stealth | -11 -10 -9 -9 -9 -9 --------- Run | Yrd Mat Mat Sto Rec Scr Distress Signals 4 | . 1 . 3 . . Communications Jammed . | . . . . . . Distress Signals . | . . . . . . Times Spotted 65 | . 18 . 38 5 4 Peak Tracking Total 10 | . 10 . 4 1 2 Tactical Retreats 2 | . . . 1 . 1 Traps | -11 -10 -9 -9 -9 -9 ------- Run | Yrd Mat Mat Sto Rec Scr Traps Triggered 2 | . 1 . 1 . . Indirectly . | . . . . . . Trap Hack Attempts . | . . . . . . Triggered . | . . . . . . Disarmed . | . . . . . . Reprogrammed . | . . . . . . Reused . | . . . . . . Traps Extracted . | . . . . . . Installed . | . . . . . . Triggered . | . . . . . . Machines | -11 -10 -9 -9 -9 -9 ---------- Run | Yrd Mat Mat Sto Rec Scr Machines Disabled . | . . . . . . Max in Single Turn . | . . . . . . Garrison Access 1 | . . . 1 . . Machines Repaired . | . . . . . . Machines Dismantled . | . . . . . . Machines Sabotaged . | . . . . . . Overloaded Fab Kills . | . . . . . . Hacking | -11 -10 -9 -9 -9 -9 --------- Run | Yrd Mat Mat Sto Rec Scr Machines Accessed 13 | . . . 6 3 4 Terminals 4 | . . . 4 . . Fabricators . | . . . . . . Repair Stations 1 | . . . 1 . . Recycling Units 3 | . . . . 3 . Scanalyzers . | . . . . . . Garrison Access 1 | . . . 1 . . Total Hacks 29 | . . . 13 4 12 Successful 20 | . . . 5 3 12 Failed 9 | . . . 8 1 . Catastrophic 1 | . . . 1 . . Database Lockouts . | . . . . . . Manual 6 | . . . 2 4 . Terminals 8 | . . . 8 . . Fabricators . | . . . . . . Repair Stations 2 | . . . 2 . . Recycling Units 4 | . . . . 4 . Scanalyzers . | . . . . . . Garrison Access 3 | . . . 3 . . Terminal Hacks 15 | . . . 3 . 12 Record 6 | . . . . . 6 Robot Analysis 5 | . . . . . 5 Open Door 4 | . . . 3 . 1 Fabricator Hacks . | . . . . . . Repair Station Hacks 1 | . . . 1 . . Refit 1 | . . . 1 . . Recycling Unit Hacks . | . . . . . . Scanalyzer . | . . . . . . Garrison Access Hacks . | . . . . . . Unauthorized Hacks 4 | . . . 1 3 . Terminals . | . . . . . . Fabricators . | . . . . . . Repair Stations . | . . . . . . Recycling Units 3 | . . . . 3 . Tunnel 3 | . . . . 3 . Scanalyzers . | . . . . . . Garrison Access 1 | . . . 1 . . Jam 1 | . . . 1 . . Data Cores Recovered . | . . . . . . Used . | . . . . . . Hacking Detections 3 | . . . 3 . . Full Trace Events 2 | . . . 2 . . Feedback Events . | . . . . . . Feedback Blocked . | . . . . . . Robot Schematics Acquired . | . . . . . . Robots Built . | . . . . . . Authchips . | . . . . . . Time . | . . . . . . Total Robot Build Rating . | . . . . . . Part Schematics Acquired . | . . . . . . Parts Built . | . . . . . . Authchips . | . . . . . . Time . | . . . . . . Total Part Build Rating . | . . . . . . Parts Repaired . | . . . . . . Time . | . . . . . . Parts Recycled . | . . . . . . Recycled Matter . | . . . . . . Retrieved Matter . | . . . . . . Retrieved Components . | . . . . . . Parts Scanalyzed . | . . . . . . Part Schematics Acquired . | . . . . . . Parts Damaged . | . . . . . . Bothacking | -11 -10 -9 -9 -9 -9 ------------ Run | Yrd Mat Mat Sto Rec Scr Used RIF Installer . | . . . . . . Robots Hacked 4 | . 1 . 2 1 . Non-combat . | . . . . . . Combat 4 | . 1 . 2 1 . Robot Hacks Applied 6 | . 1 . 4 1 . find_shortcuts 4 | . 1 . 2 1 . find_garrison 2 | . . . 2 . . Relay Couplers Released . | . . . . . . Fabnet Peak Effective % . | . . . . . . Robots Rewired 10 | . . . . 10 . Allies Hacked . | . . . . . . Hacks Repelled . | . . . . . . Allies | -11 -10 -9 -9 -9 -9 -------- Run | Yrd Mat Mat Sto Rec Scr Total Allies 11 | . . . . 11 . Largest Group 10 | . . . . 10 8 Highest-Rated Group 137 | . . . . 137 119 Highest-Rated Ally 27 | . . . . 27 27 Total Orders . | . . . . . . Ally Attacks 8 | . . . . 6 2 Total Damage 63 | . . . . 41 22 Kills 1 | . . . . 1 . Allies Corrupted . | . . . . . . Allies Melted 3 | . . . . . 3 Intel | -11 -10 -9 -9 -9 -9 ------- Run | Yrd Mat Mat Sto Rec Scr Active Infowar (turns) . | . . . . . . Robot Analysis Total 9 | . 1 . 2 1 5 Derelict Logs Recovered . | . . . . . . Drone Launches . | . . . . . . Drone Recoveries . | . . . . . . Exploration | -11 -10 -9 -9 -9 -9 ------------- Run | Yrd Mat Mat Sto Rec Scr Turns Passed 4722 | 9 29 10 1462 883 2329 Spaces Moved 2625 | 18 67 26 507 354 1653 Core 380 | 18 31 . 41 3 287 Treads 1853 | . . . 349 138 1366 Legs 215 | . . . 34 181 . Wheels . | . . . . . . Hover 85 | . . . 53 32 . Flight 92 | . 36 26 30 . . Fastest Speed 37 | 50 37 37 37 50 50 Average Speed 137 | 50 43 37 150 138 139 Slowest Speed 250 | 50 50 37 250 160 160 Overloaded Moves . | . . . . . . Propulsion Burnouts . | . . . . . . Robots Hopped 3 | . 3 . . . . Potential Cave-ins . | . . . . . . Cave-ins Triggered . | . . . . . . Exploration Rate (%) 40 | 4 24 8 69 50 87 Regions Visited 5 Branch Regions 3 Pre-discovered Areas 3 | . . . . 3 . Known Exits Taken . | . . . . . . Unknown Exits Taken 5 | 1 1 1 1 1 . Scrap Searched . | . . . . . . Spaces Dug . | . . . . . . Terrain Destroyed . | . . . . . . Melee . | . . . . . . Projectile . | . . . . . . AOE . | . . . . . . Terrain Rammed . | . . . . . . Walls Destroyed . | . . . . . . Machines Disabled . | . . . . . . Actions | -11 -10 -9 -9 -9 -9 --------- Run | Yrd Mat Mat Sto Rec Scr Total 3480 | 17 63 25 1024 678 1673 Wait 385 | . . . 349 22 14 Move 2614 | 17 60 25 506 353 1653 Hop 3 | . 3 . . . . Pick Up 3 | . . . . . 3 Fast Attach . | . . . . . . Attach . | . . . . . . Detach . | . . . . . . Swap . | . . . . . . Drop 2 | . . . . . 2 Fire 99 | . . . 86 12 1 Melee . | . . . . . . Ram . | . . . . . . Kick 196 | . . . 3 193 . Crush 94 | . . . 79 15 . Escape Stasis . | . . . . . . Rewire 84 | . . . 1 83 . Trap . | . . . . . . Miscellaneous . | . . . . . . Route ------- -11/Scrapyard -10/Materials -9/Materials -9/Storage (discovered 2 exits: [*Mat] / *Rec) -9/Recycling (discovered 2 exits: [*Fac] / *Scr) -9/Scraptown (discovered 2 exits: [*Fac x2]) History --------- Turn | Location | Event 4 | -11/Scrapyard | Discovered new exit (range 13) 10 | -11/Scrapyard | Entered Materials 33 | -10/Materials | Discovered new exit (range 16) 39 | -10/Materials | Entered another Materials area 42 | -9/Materials | Discovered new exit (range 16) 49 | -9/Materials | Entered Storage 221 | -9/Storage | Core integrity fell below 50% 225 | -9/Storage | Lost 4 parts (1p1n1u1w) 932 | -9/Storage | Discovered new exit (range 10) 1357 | -9/Storage | Core integrity fell below 20% 1469 | -9/Storage | Used back door to open Recycling access 1469 | -9/Storage | Discovered new exit (range 5) 1511 | -9/Storage | Entered Recycling 2063 | -9/Recycling | Discovered new exit (range 9) 2342 | -9/Recycling | Scanned before Scraplab entrance 2364 | -9/Recycling | Entered Scraplab 2377 | -9/Recycling | Discovered new exit (range 2) 2394 | -9/Recycling | Entered Scraptown 2394 | -9/Scraptown | Accompanied by 8 allies 2394 | -9/Scraptown | System corruption cleaned by C-Scrubber 2527 | -9/Scraptown | Heard Great Nut preacher, LISTEN AND RECITE! 2617 | -9/Scraptown | Discovered new exit (range 11) 2790 | -9/Scraptown | Visited Cyclists 2863 | -9/Scraptown | Visited UFD Registry 2863 | -9/Scraptown | Registered with UFD as "Steambox" 3089 | -9/Scraptown | Entered Cyclist Reading Room 3129 | -9/Scraptown | Visited SPCMW 3145 | -9/Scraptown | Visited Assassins FH 3164 | -9/Scraptown | Visited Spacefarers 3201 | -9/Scraptown | Visited Observation Area 3225 | -9/Scraptown | Visited Junk Repository 3258 | -9/Scraptown | Visited Fellowship of the Rings 3498 | -9/Scraptown | Visited Derelict Rescue Squad 3508 | -9/Scraptown | Found DRS Beacon 3539 | -9/Scraptown | Visited Analyses Database 3575 | -9/Scraptown | Visited Sword Containment 3803 | -9/Scraptown | Visited Infowarlord's Domain 4035 | -9/Scraptown | Visited Supply Room 4056 | -9/Scraptown | Visited Science Testing Area 4072 | -9/Scraptown | Visited LU-1G1's Boring Crew 4189 | -9/Scraptown | Visited Curators Association 4243 | -9/Scraptown | Visited Modified Component R&D 4496 | -9/Scraptown | Discovered new exit (range 5) 4616 | -9/Scraptown | Met Optimus 4616 | -9/Scraptown | Accepted into 0bPrime 4658 | -9/Scraptown | Took control of Triborg (ally) 4689 | -9/Scraptown | Civil war broke out across Scraptown 4723 | -9/Scraptown | Destroyed by KC-8T0(j) with Overtuned Pulse Rifle Last Messages --------------- 04691_ Q4-KIK(p) suffers critical hit (Destroy). 04691_ Q4-KIK(p) destroyed. 04691_ Machine disabled. 04691_ Slug penetrates Wall. 04693_ Optimus: "No holds barred, if they're hostile, they are an enemy of the people and we must shoot to kill. Collateral damage is to be expected!" 04700_ Protomatter-18 decays. 04707_ Slug penetrates BR-1LC(j). 04708_ Siege Cannon recoils violently, damaging core (-37). 04709_ Slug penetrates BR-1LC(j). 04711_ Mercenary 2b destroyed. 04713_ Slug penetrates BR-1LC(j). 04716_ Critical hit (Burn: +39). 04717_ Slug penetrates BR-1LC(j). 04717_ BR-1LC(j) destroyed. 04718_ Activated siege mode. 04719_ Ended siege mode. Map ----- +----------------------------------------------------+ | ?????????????????????????????????????????????????? | | ????????????????????????????????????????#####????? | | ????????????????????????????????????????#"""#????? | | ???????????????????????????????####?????#" "#????? | | ??????????????????????????????## ##????# < #????? | | ???????????????????""|##!!"#### ###### = ##???? | | ?????????????????? !!![ #???? | | ?????????????????? !%/%=*#???? | | ?????????????????????????###### ###########???? | | ###???????????????????????????## ##?????????????? | | """"???????###??##?????????????# #??????????????? | | """""??????#"###"#?????????????# ############???? | | [ " ???#### "=" ####??????????# ## # # #???? | | =???#" """ "#???##?????# ## # """ # #???? | | ????#"" ""#????" ?"""?# ## # "#" # #???? | | ?????#*" "&#????" ? ?# ## # """ # #???? | | ""?????##"" ""##??? " "?# ## #???? | | "#####?#" "##"?" " # ## ####### #???? | | """""#?##"" ""### " " " # ## # # #???? | | [ = #??#&" "!#?# " # ## # # #???? | | #?##"" ""##? # ## # # #???? | | #?#" "#???"""""??# ## #???? | | ## ####?###### ######????# #???# ## #########???? | | ## ###########=########### ##### ## ##???#######? | | "" """""""""""%""""""""""" """"" "" "#??? #? | | [ i TT ! "#?? #? | | 3 i k TT !%= "#?? #? | | i * "#? #? | | k ## #? | | j #? | | """"""""""""""""" """""""""" "## #? | | """""""""""""""""""""""""""" "#? #? | | ""###### ################"" #?? #? | | ""# ##????????#"" #??########? | | ""# X"#????????#"" "#?? "!!????? | | ""# "" "" ##????????#"" "#?? ""???? | | "# "" "" X"#??????###"" "#? ""!!"???? | | ""# " " ######### #"" "## "!!"#??? | | "" "" =#??? | | "" "" "## ""=#??? | | ""# " " ######### #"" "#? ""????? | | ""# "" "" ""#??????###"" "#??"]]]=???? | | ""# "" "" ##????????#"" "#??#####???? | | ""# X"#????????#"" "#??????????? | | ""# ##????????#"" "#??????????? | | ""###### ################"" "#?#########? | | """""""""""""""""""""""""""" "## !!!!! #? | | """""""""""""""""""""""""""" #? | | "## #? | | "#? #? | +----------------------------------------------------+ Best States ------------- Heat Dissipation 120 Energy Generation 28 Energy Capacity 2450 Matter Stores 300 Matter Capacity 300 Sight Range 16 Terrain Scan Density 10 Armor Coverage 450 Resistance: EX 50 Resistance: EM 65 Resistance: I 25 Weapon Shielding 15 Evasion (%) 62 Targeting Accuracy 18 Recoil Reduction 6 Item Schematics ----------------- None Robot Schematics ------------------ None Fabricated ------------ Nothing Repaired ---------- Nothing Alien Tech Used ----------------- None Achievements -------------- None Challenges ------------ None Polymind | -11 -10 -9 -9 -9 -9 ---------- Run | Yrd Mat Mat Sto Rec Scr Hosts 6 | . 1 . 2 2 1 Combat Hostiles 4 | . 1 . 2 1 . Allies 2 | . . . . 1 1 Unique Host Classes 4 | . 1 . 2 . 1 Average Host Suspicion 50 | . 100 6 96 97 . Unsuspicious Activity 489 | . . . 329 13 147 Returns to Shadow . | . . . . . . Fuzzy Dispatches . | . . . . . . Protomatter Created 733 | . . . 127 41 565 Used 361 | . 6 . 53 27 275 Decayed 194 | . . . 29 20 145 Highest Spend 275 | . 6 . 30 23 275 Top 5 Hosts by Kills: Y-45 Defender (-9/Storage: 16) G-47 Trooper (-9/Storage: 6) Mercenary 2b (-9/Recycling: 1) Game ------ Seed RemoteProjectionRay Manual? 0 Play Time 00:22:44 Cumulative 184.3 hours Start 2025.05.23 @ 13:52:54 End 2025.05.23 @ 14:16:12 Sessions 1 Manual Loads 0 Difficulty Rogue Special Mode Winter2022/Polymind Game No. 208 Rogue 208 Adventurer 0 Explorer 0 Win Type - Total 1 Types 1/0/0/0/0/0/0/0/0/0 Lore% 71 Gallery% 70 Achievement% 61 Wizard Run 0 Options --------- Layout 1 ASCII 0 Keyboard 0 Movement Numpad Keybinds 0 Fullscreen 1 Font 24/Smallcaps Map View 50x35 Zoom Use 0% Tactical HUD 1 Map Filters NONE Filters NONE Steam 1 RUN: 68606c43-6b8c-41e9-82a3-19ede7cb0f92